bitfinex-derivatives/quotes_ETHF0:USTF0_20241231
["timestamp","ask_amount","ask_price","bid_price","bid_amount"]
[1735630964630,2.33921773,3354.1,3353.9,0.29856]
[1735630964930,2.33921773,3354.1,3354.0,0.29855]
[1735630965130,4.69173924,3354.2,3354.0,0.29855]
[1735630965733,4.69173924,3354.2,3354.1,0.29854]
[1735630967426,4.69173924,3354.2,3354.1,1.36702773]
[1735630968936,3.521035,3354.2,3354.1,1.36702773]
[1735630970023,3.521035,3354.3,3354.2,0.29853]
[1735630970227,3.521035,3354.3,3354.2,4.80813]
[1735630970630,1.269435,3354.3,3354.2,4.80813]
[1735630972436,2.34775243,3354.6,3354.5,0.2985]
[1735630972637,2.34775243,3354.6,3354.5,1.36698773]
[1735630974032,2.34775243,3354.6,3354.5,6.05670731]
[1735630974533,1.74377243,3354.6,3354.5,6.05670731]
[1735630974733,0.43664243,3354.6,3354.5,11.05670731]
[1735630974933,2.43e-06,3354.6,3354.5,11.05670731]
[1735630975634,4.69173924,3355.0,3354.9,0.29847]
[1735630975834,4.69173924,3355.0,3354.9,5.75475773]
[1735630976238,1.06848773,3355.5,3354.9,5.45628773]
[1735630976239,4.69173924,3355.4,3354.9,5.45628773]
[1735630976434,4.69173924,3355.4,3355.3,0.29843]
[1735630977340,1.06848773,3355.5,3355.4,0.29842]
[1735630979937,1.50508773,3355.5,3355.4,0.29842]
[1735630980330,1.50508773,3355.5,3355.3,0.29843]
[1735630980535,1.06848773,3355.4,3355.3,0.29843]
[1735630985134,1.06848773,3355.4,3355.3,41.09843]
[1735630986038,1.06848773,3355.4,3355.3,40.8]
[1735630986241,1.50908773,3355.4,3355.3,40.8]
[1735630986538,1.50908773,3355.4,3355.3,41.09843]
[1735630986740,1.06848773,3355.4,3355.3,41.09843]
[1735630987641,1.06848773,3355.4,3355.3,0.29843]
[1735630988044,1.06848773,3355.4,3355.3,41.09843]
[1735630992547,0.4366,3355.5,3355.4,0.29842]
[1735630995047,1.50508773,3355.5,3355.4,0.29842]
[1735630999150,1.50508773,3355.5,3355.3,40.8]
[1735630999351,0.29842,3355.4,3355.3,40.8]
[1735630999549,0.438,3355.4,3355.3,41.09843]
[1735631001757,1.50508773,3355.5,3355.4,0.29842]
[1735631007859,1.50508773,3355.5,3355.4,0.72052]
[1735631009660,0.4366,3355.5,3355.4,0.72052]
[1735631009861,8.34683924,3355.8,3355.7,0.2984]
[1735631009862,4.69173924,3355.8,3355.7,0.2984]
[1735631011357,1.52188773,3355.9,3355.8,0.29839]
[1735631012358,6.21362697,3355.9,3355.8,0.29839]
[1735631014773,1.52188773,3355.9,3355.8,0.29839]
[1735631015171,1.52188773,3355.9,3355.8,0.30859712]
[1735631015965,7.39083761,3355.9,3355.8,0.30859712]
[1735631017170,1.52188773,3355.9,3355.8,0.30859712]
[1735631018370,1.52188773,3355.9,3355.8,0.3187789]
[1735631019170,1.52188773,3355.9,3355.8,0.0203889]
[1735631019469,1.82026773,3355.9,3355.8,0.0203889]
[1735631019972,1.52188773,3355.9,3355.8,0.0203889]
[1735631020174,1.52188773,3355.9,3355.8,0.3187789]
[1735631026080,1.52188773,3355.9,3355.8,0.93760729]
[1735631026485,1.82026773,3355.9,3355.8,0.63921729]
[1735631030080,1.82026773,3355.9,3355.8,0.93760729]
[1735631030477,1.52188773,3355.9,3355.8,0.93760729]
[1735631032886,0.4534,3355.9,3355.8,0.93760729]
[1735631035989,6.32272899,3355.9,3355.8,0.93760729]
[1735631038689,0.4534,3355.9,3355.8,0.93760729]
[1735631039884,0.4534,3355.9,3355.8,0.63921729]
[1735631040087,5.02806773,3355.9,3355.8,0.63921729]
[1735631044295,1.36689773,3355.6,3355.5,0.4349]
[1735631047794,1.06848773,3355.6,3355.5,0.73332]
[1735631047997,1.06848773,3355.8,3355.6,0.2984]
[1735631048196,1.06848773,3355.8,3355.5,0.4349]
[1735631048396,1.06848773,3355.8,3355.7,0.2984]
[1735631052903,0.4534,3355.9,3355.6,0.4568]
[1735631053198,0.75178,3355.9,3355.7,0.29839]
[1735631054197,0.75178,3355.9,3355.6,0.4568]
[1735631054501,1.36687773,3355.8,3355.6,0.7552]
[1735631056999,1.06848773,3355.8,3355.5,0.4349]
[1735631057197,0.4534,3355.9,3355.3,4.68295166]
[1735631057198,0.29842,3355.4,3355.3,4.68295166]
[1735631057400,1.36690773,3355.4,3355.3,4.68295166]
[1735631058000,6.36690773,3355.4,3355.3,1.04875166]
[1735631058204,14.41510379,3355.4,3355.2,5.99897915]
[1735631058404,3.50623,3355.3,3355.2,5.94477915]
[1735631058605,8.50623,3355.3,3355.2,5.94477915]
[1735631059005,8.2078,3355.3,3354.4,0.4238]
[1735631059204,1.06848773,3354.5,3354.4,0.4238]
[1735631060206,5.46499045,3354.9,3354.4,0.4238]
[1735631060402,0.2985,3354.6,3354.4,0.4238]
[1735631060600,5.46499045,3354.9,3354.4,0.4238]
[1735631060601,4.99125584,3354.5,3354.4,0.4238]
[1735631060800,4.69275584,3354.5,3354.4,0.4238]
[1735631061398,4.69275584,3354.5,3354.4,0.72231]
[1735631061598,4.69275584,3354.5,3354.4,0.4238]
[1735631062400,4.99125584,3354.5,3354.4,0.4238]
[1735631062803,4.69275584,3354.5,3354.4,0.4238]
[1735631062997,4.99125584,3354.6,3354.4,0.4238]
[1735631064406,5.46499045,3354.9,3354.4,0.4238]
[1735631064407,3.51437137,3354.5,3354.4,0.4238]
[1735631065907,3.51437137,3354.5,3354.4,0.72231]
[1735631066710,0.29848,3354.8,3354.4,0.72231]
[1735631066711,3.51437137,3354.6,3354.4,0.72231]
[1735631067210,3.51437137,3354.6,3354.5,0.2985]
[1735631069109,3.51437137,3354.8,3354.5,0.2985]
[1735631069310,3.81285137,3354.8,3354.5,0.2985]
[1735631069514,3.51437137,3354.8,3354.4,0.4238]
[1735631069714,3.51437137,3354.8,3354.6,0.29849]
[1735631070418,3.81285137,3354.8,3354.6,0.29849]
[1735631071010,0.29849,3354.7,3354.4,0.4238]
[1735631071204,0.29849,3354.7,3354.4,0.72231]
[1735631071411,3.51437137,3354.8,3354.4,0.72231]
[1735631071412,0.2985,3354.5,3354.4,0.4238]
[1735631076122,0.29853,3354.2,3353.8,0.29856]
[1735631076420,0.29856,3354.0,3353.9,0.4273]
[1735631076719,2.55575045,3354.0,3353.9,41.2273]
[1735631077416,2.55575045,3354.0,3353.9,0.4273]
[1735631078015,0.29856,3354.0,3353.9,0.4273]
[1735631078824,3.51437137,3354.0,3353.9,0.72586]
[1735631079427,0.29854,3354.1,3353.9,0.4273]
[1735631080323,3.81291137,3354.2,3353.9,0.72585]
[1735631081820,0.29854,3354.2,3353.9,0.72585]
[1735631083222,3.51437137,3354.3,3353.9,0.4273]
[1735631083422,3.81290137,3354.3,3354.0,0.29855]
[1735631084120,3.51437137,3354.3,3353.9,0.4273]
[1735631084324,3.51437137,3354.3,3354.2,0.29853]
[1735631084828,3.51437137,3354.4,3354.2,0.29853]
[1735631085028,3.51437137,3354.4,3354.3,0.866]
[1735631085422,3.51437137,3354.4,3354.3,1.16452]
[1735631085621,3.51437137,3354.4,3354.3,0.866]
[1735631086118,3.50631,3354.5,3354.3,0.866]
[1735631086522,3.50631,3354.5,3354.4,0.4271]
[1735631086924,3.2078,3354.5,3354.4,0.4271]
[1735631087123,3.5063,3354.5,3354.4,0.4271]
[1735631092137,0.2985,3354.5,3354.4,0.4271]
[1735631093949,3.81287137,3354.5,3354.4,0.4271]
[1735631096347,3.51437137,3354.5,3354.4,0.4271]
[1735631096548,3.81287137,3354.5,3354.4,0.4271]
[1735631096951,0.29851,3354.4,3354.3,0.866]
[1735631098045,4.88138727,3354.4,3354.3,0.866]
[1735631099647,1.3670159,3354.4,3354.3,0.866]
[1735631100341,4.5748159,3354.4,3354.3,0.866]
[1735631100548,4.2763059,3354.4,3354.0,1.3271]
[1735631100845,0.29854,3354.1,3354.0,1.3271]
[1735631101543,1.0685059,3354.2,3353.6,44.0078]
[1735631101753,1.3670759,3353.8,3353.7,0.4207]
[1735631102444,1.0685059,3353.8,3353.6,3.2078]
[1735631102650,0.29858,3353.7,3353.6,3.2078]
[1735631104251,0.29856,3353.9,3353.6,3.50638]
[1735631104549,10.23379397,3354.0,3353.6,3.2078]
[1735631104754,5.85764938,3353.7,3353.6,3.50638]
[1735631105352,2.40014938,3353.7,3353.6,3.50638]
[1735631105650,0.14864938,3353.7,3353.6,3.50638]
[1735631106054,2.49151408,3353.7,3353.6,3.50638]
[1735631106248,2.3428647,3353.7,3353.6,3.50638]
[1735631107354,3.50632,3354.4,3353.8,0.29857]
[1735631107355,2.3428647,3353.9,3353.8,0.29857]
[1735631107547,2.3428647,3353.9,3353.8,2.55670091]
[1735631108551,2.3428647,3354.0,3353.9,0.29856]
[1735631108955,2.3428647,3354.0,3353.9,0.72926]
[1735631109558,2.3428647,3354.2,3354.0,0.29855]
[1735631109856,2.6414047,3354.2,3353.9,0.72925]
[1735631110356,4.41519706,3354.1,3353.9,0.72925]
[1735631110652,2.25813091,3354.0,3353.6,3.2078]
[1735631110848,2.55671091,3353.7,3353.1,10.08743307]
[1735631111045,2.25813091,3353.7,3353.1,9.36271307]
[1735631111257,0.29862,3353.2,3353.1,9.36271307]
[1735631111558,2.64164092,3353.2,3353.0,3.2078]
[1735631111757,2.34302092,3353.2,3353.0,3.2078]
[1735631111954,2.34302092,3353.2,3353.1,0.29863]
[1735631112452,4.68572941,3353.3,3353.1,0.29862]
[1735631112855,4.68572941,3353.3,3353.2,0.29862]
[1735631113754,3.51280125,3353.3,3353.2,0.29862]
[1735631114058,3.81141125,3353.3,3353.1,0.29863]
[1735631114259,3.51280125,3353.3,3353.2,0.29862]
[1735631114556,3.51280125,3353.3,3353.0,3.2078]
[1735631114756,3.51280125,3353.3,3353.1,0.29863]
[1735631116053,3.51280125,3353.3,3353.2,0.29862]
[1735631117153,3.51280125,3353.3,3353.0,3.2078]
[1735631117455,3.51280125,3353.3,3353.2,0.29862]
[1735631117659,3.51280125,3353.3,3353.0,3.2078]
[1735631117852,3.81142125,3353.3,3353.0,3.50643]
[1735631118060,3.51280125,3353.3,3353.0,3.2078]
[1735631118357,3.51280125,3353.3,3353.1,0.29862]
[1735631119052,3.51280125,3353.3,3353.2,0.29862]
[1735631123161,3.81140125,3353.4,3353.1,0.29863]
[1735631124264,3.51280125,3353.3,3353.2,0.29862]
[1735631127757,3.51280125,3353.3,3352.9,40.8]
[1735631128158,0.29866,3352.8,3352.7,3.2078]
[1735631130261,4.24555125,3352.9,3352.7,3.2078]
[1735631130668,3.94690125,3352.9,3352.8,0.29866]
[1735631130966,3.94690125,3352.9,3352.7,3.50646]
[1735631131169,4.24555125,3352.9,3352.7,3.50646]
[1735631131464,3.94690125,3352.9,3352.7,3.50646]
[1735631131668,3.06989121,3352.9,3352.7,3.2078]
[1735631132967,0.29866,3352.8,3352.7,3.2078]
[1735631133566,3.06989121,3352.9,3352.7,3.2078]
[1735631134668,2.77124121,3352.9,3352.7,3.50646]
[1735631135168,2.77124121,3352.9,3352.7,0.29866]
[1735631135558,2.77124121,3352.9,3352.3,3.2078]
[1735631135863,2.33714121,3352.9,3352.8,0.29866]
[1735631136372,2.33714121,3352.9,3352.8,1.63456]
[1735631136671,2.33714121,3352.9,3352.8,42.43456]
[1735631137665,3.08794121,3353.5,3352.8,42.1359]
[1735631137858,3.08794121,3353.5,3353.3,0.29861]
[1735631138666,2.78934121,3353.5,3352.9,0.29865]
[1735631138968,2.78934121,3353.5,3353.3,0.29861]
[1735631139173,2.33714121,3353.4,3353.3,0.29861]
[1735631140773,2.33497292,3353.4,3353.3,0.29861]
[1735631142873,3.96500125,3353.5,3353.3,0.29861]
[1735631144969,3.51280125,3353.4,3353.3,0.29861]
[1735631147168,3.51280125,3353.4,3353.3,2.55674091]
[1735631148476,3.51280125,3353.8,3353.3,43.05813091]
[1735631148678,3.51280125,3353.8,3353.7,0.29858]
[1735631152478,3.51280125,3353.9,3353.6,2.25813091]
[1735631152780,3.51280125,3353.9,3353.8,0.29857]
[1735631153475,3.51280125,3353.9,3353.8,5.29857]
[1735631153977,3.51280125,3354.4,3353.8,45.8]
[1735631154186,3.51280125,3354.4,3354.3,0.29852]
[1735631154677,3.51280125,3354.4,3354.3,1.17012]
[1735631154878,4.68572941,3354.6,3354.3,1.17012]
[1735631154879,3.51280125,3354.6,3354.5,0.2985]
[1735631157277,3.51280125,3354.6,3354.5,0.3490188]
[1735631157477,3.51280125,3354.6,3354.5,0.34938642]
[1735631158080,0.416,3354.7,3354.5,0.05088642]
[1735631158277,0.416,3354.7,3354.6,0.2985]
[1735631158478,0.416,3354.7,3354.6,0.34938642]
[1735631160477,6.72060125,3355.0,3354.7,0.29848]
[1735631160678,3.2078,3355.0,3354.7,0.29848]
[1735631160985,3.50626,3355.0,3354.6,0.34937642]
[1735631161487,3.50626,3355.0,3354.8,0.05088642]
[1735631162588,3.50626,3355.0,3354.9,0.05088642]
[1735631162791,3.2078,3355.0,3354.9,0.05088642]
[1735631163581,0.4248,3355.1,3354.9,0.05088642]
[1735631163884,0.4248,3355.1,3355.0,0.29846]
[1735631164188,3.51280125,3355.2,3355.1,0.29845]
[1735631164581,3.51280125,3355.2,3355.1,0.34933642]
[1735631164886,0.8816,3355.3,3355.2,0.29844]
[1735631165283,3.2078,3355.4,3355.1,0.05088642]
[1735631165587,4.40020125,3355.6,3355.5,0.29842]
[1735631166182,0.4584,3355.6,3355.5,0.29842]
[1735631166784,0.4584,3355.6,3355.5,41.14930642]
[1735631167185,0.4584,3355.6,3355.5,40.85088642]
[1735631168290,0.4584,3355.6,3355.5,41.14930642]
[1735631173184,0.4584,3355.6,3355.5,40.85088642]
[1735631173382,0.874,3355.6,3355.5,0.05088642]
[1735631175292,1.17241,3355.6,3355.5,0.05088642]
[1735631178288,0.874,3355.6,3355.5,0.05088642]
[1735631179197,0.874,3355.6,3355.5,0.34930642]
[1735631179696,0.874,3355.6,3355.5,41.14930642]
[1735631189498,0.4584,3355.6,3355.5,41.14930642]
[1735631190396,0.4207,3355.7,3355.5,40.85088642]
[1735631190598,0.4207,3355.7,3355.6,0.29841]
[1735631190797,0.4207,3355.7,3355.6,0.78949642]
[1735631191505,0.4491,3355.8,3355.7,0.2984]
[1735631191803,0.4491,3355.8,3355.7,0.80248642]
[1735631197008,0.4491,3355.8,3355.7,0.50408642]
[1735631197203,0.4491,3355.8,3355.7,0.05088642]
[1735631198208,0.74749,3355.8,3355.7,0.05088642]
[1735631198507,4.26029125,3355.8,3355.7,0.05088642]
[1735631199506,0.74749,3355.8,3355.7,0.05088642]
[1735631200512,5.43321941,3355.8,3355.7,0.05088642]
[1735631201204,7.69135032,3355.8,3355.7,0.05088642]
[1735631202003,3.00562091,3355.8,3355.7,0.05088642]
[1735631203105,15.14262299,3355.8,3355.0,3.2078]
[1735631203316,2.55658091,3355.1,3355.0,3.2078]
[1735631203810,0.29845,3355.1,3355.0,3.2078]
[1735631204511,0.8536,3355.3,3355.0,3.2078]
[1735631204705,0.8536,3355.3,3355.1,0.29845]
[1735631204911,0.8536,3355.3,3355.1,0.72345]
[1735631205410,0.8536,3355.3,3355.1,0.425]
[1735631205913,0.8536,3355.3,3355.1,0.72345]
[1735631206316,1.2721,3355.3,3355.1,0.72345]
[1735631206612,6.69736942,3355.3,3355.2,0.29844]
[1735631207315,6.69736942,3355.3,3355.2,41.09844]
[1735631207516,6.69736942,3355.3,3355.2,40.8]
[1735631208515,6.99579942,3355.3,3355.2,40.8]
[1735631209020,0.8411,3355.3,3355.2,40.8]
[1735631211218,0.8411,3355.3,3355.2,41.09844]
[1735631212021,3.2078,3355.4,3355.2,41.09844]
[1735631212315,0.29846,3355.1,3354.7,0.29848]
[1735631212513,0.29846,3355.1,3354.8,0.4383]
[1735631212710,0.4596,3355.0,3354.8,41.2383]
[1735631212910,0.4596,3355.0,3354.8,41.53678]
[1735631213518,4.68332779,3354.9,3354.8,41.53678]
[1735631213708,4.68332779,3354.9,3354.8,41.2383]
[1735631214410,4.68332779,3354.9,3354.8,41.53678]
[1735631214611,4.68332779,3355.0,3354.8,41.2383]
[1735631214812,4.68332779,3355.0,3354.9,0.29847]
[1735631215515,4.68332779,3355.0,3354.9,41.09847]
[1735631215719,4.68332779,3355.1,3355.0,0.29846]
[1735631218719,4.68332779,3355.1,3354.9,41.09846]
[1735631219223,5.12952779,3355.1,3354.9,41.09846]
[1735631221220,5.12952779,3355.1,3355.0,0.29846]
[1735631222324,0.29846,3355.0,3354.8,0.4383]
[1735631222718,5.54972779,3355.1,3354.9,0.29846]
[1735631222924,5.12952779,3355.1,3354.9,0.29846]
[1735631223611,5.42797779,3355.1,3354.9,0.29846]
[1735631223817,5.42797779,3355.1,3354.8,0.73677]
[1735631224015,0.29846,3355.0,3354.8,0.73677]
[1735631224728,5.42798779,3355.1,3354.8,0.73677]
[1735631225323,5.42798779,3355.1,3354.8,0.4383]
[1735631225517,5.42798779,3355.1,3354.9,0.29847]
[1735631225821,4.68332779,3355.1,3354.8,0.4383]
[1735631226022,4.68332779,3355.1,3354.9,0.29847]
[1735631226424,4.98177779,3355.1,3354.9,0.29847]
[1735631227025,4.68332779,3355.1,3355.0,0.29846]
[1735631229031,3.51230096,3355.1,3355.0,0.29846]
[1735631236430,3.51230096,3355.1,3354.8,0.4383]
[1735631236628,2.26790202,3355.0,3354.8,0.73677]
[1735631236932,2.71160202,3355.0,3354.8,0.4383]
[1735631237132,2.41313202,3355.0,3354.8,0.4383]
[1735631237432,0.29848,3354.8,3354.6,4.66072645]
[1735631237634,1.06803202,3354.8,3354.6,4.95921645]
[1735631237823,1.36651202,3354.8,3354.6,4.95921645]
[1735631238029,1.36651202,3354.8,3354.6,0.29849]
[1735631238225,1.06803202,3354.8,3354.5,40.8]
[1735631238430,1.36653202,3354.6,3354.5,40.8]
[1735631238635,0.29851,3354.4,3354.3,4.66072645]
[1735631238830,1.36654202,3354.4,3354.3,4.66072645]
[1735631239334,2.23034202,3354.4,3354.3,4.66072645]
[1735631239536,2.23034202,3354.4,3354.2,40.8]
[1735631239735,1.93183202,3354.4,3354.2,40.8]
[1735631239936,1.93183202,3354.4,3354.2,41.09853]
[1735631240139,2.23035202,3354.4,3354.2,40.8]
[1735631240437,1.16232,3354.4,3354.2,40.8]
[1735631240640,5.8465147,3354.4,3354.2,40.8]
[1735631241434,5.8465147,3354.4,3354.2,41.09853]
[1735631242335,5.5479947,3354.4,3354.2,41.09853]
[1735631243742,5.8465047,3354.4,3354.2,40.8]
[1735631243938,5.5479947,3354.4,3354.3,0.29852]
[1735631245639,4.6841947,3354.4,3354.3,0.29852]
[1735631245941,4.6841947,3354.5,3354.2,43.05744355]
[1735631246142,4.6841947,3354.5,3354.4,0.29851]
[1735631247635,3.51050505,3354.9,3354.8,0.29848]
[1735631250338,3.51050505,3355.0,3354.6,3.2078]
[1735631250541,3.51050505,3355.0,3354.9,0.29847]
[1735631257750,3.51050505,3355.0,3354.6,3.2078]
[1735631257941,0.29849,3354.7,3354.6,3.2078]
[1735631258142,2.25744355,3354.8,3354.6,3.2078]
[1735631258449,0.4376,3354.7,3354.6,3.2078]
[1735631259540,0.73609,3354.7,3354.6,3.2078]
[1735631259937,0.73609,3354.7,3353.9,0.4163]
[1735631259938,0.29852,3354.4,3353.9,0.4163]
[1735631260142,0.8611,3354.3,3354.0,0.29854]
[1735631260543,0.8611,3354.3,3354.1,40.8]
[1735631260745,0.8611,3354.3,3354.1,41.09854]
[1735631261345,0.8611,3354.3,3353.6,0.29858]
[1735631261346,0.29856,3353.9,3353.6,0.29858]
[1735631261644,0.29856,3353.9,3353.5,4.95931645]
[1735631261645,0.4605,3353.8,3353.5,4.95931645]
[1735631261851,0.9001,3353.8,3353.5,45.75931645]
[1735631262543,3.50508704,3353.7,3353.5,40.8]
[1735631262745,0.29858,3353.6,3353.5,40.8]
[1735631262949,4.23616704,3353.7,3353.5,40.8]
[1735631263346,0.29858,3353.6,3353.5,40.8]
[1735631264046,3.93758704,3353.7,3353.5,40.8]
[1735631264347,3.50508704,3353.6,3353.5,40.8]
[1735631265244,2.33277071,3353.6,3353.5,40.8]
[1735631265446,2.33277071,3353.6,3353.5,41.09859]
[1735631266350,0.03277071,3353.6,3353.5,42.43269]
[1735631266549,3.50508704,3353.7,3353.5,42.43269]
[1735631266550,3.50508704,3353.7,3353.6,0.29858]
[1735631266751,2.33199691,3353.9,3353.8,0.29857]
[1735631267152,2.33199691,3353.9,3353.8,41.09857]
[1735631267756,4.24189704,3354.4,3354.0,0.29854]
[1735631268557,3.94338704,3354.4,3353.8,40.8]
[1735631268755,3.94338704,3354.4,3354.2,0.29853]
[1735631269855,4.24189704,3354.4,3354.0,0.29854]
[1735631270159,4.24189704,3354.4,3354.1,0.29854]
[1735631270160,0.4383,3354.4,3354.1,0.29854]
[1735631272355,0.4383,3354.4,3353.8,40.8]
[1735631272555,0.4383,3354.4,3354.2,0.29853]
[1735631272960,6.71288704,3354.6,3354.5,0.2985]
[1735631273155,3.50508704,3354.6,3354.5,0.2985]
[1735631273958,3.80356704,3354.8,3354.5,0.2985]
[1735631274565,3.50508704,3354.8,3354.2,1.3244]
[1735631274853,3.50508704,3354.8,3354.7,0.29849]
[1735631275657,9.01320939,3355.0,3354.3,0.29852]
[1735631275658,3.50508704,3354.9,3354.3,0.29852]
[1735631275958,3.50508704,3354.9,3354.7,0.29848]
[1735631277051,3.50508704,3354.9,3354.2,1.3244]
[1735631277258,3.50508704,3354.9,3354.8,0.29848]
[1735631278157,4.0413,3355.0,3354.8,0.29848]
[1735631278158,6.71288704,3355.0,3354.8,0.29848]
[1735631278961,7.01134704,3355.0,3354.2,1.3244]
[1735631279356,3.2078,3355.0,3354.2,1.3244]
[1735631279660,0.29847,3354.9,3354.6,0.29849]
[1735631279860,0.71907,3354.9,3354.6,0.29849]
[1735631280163,0.4206,3354.9,3354.2,1.3244]
[1735631280458,0.4206,3354.9,3354.4,0.29851]
[1735631280459,0.2985,3354.6,3354.4,0.29851]
[1735631281161,0.4206,3354.9,3354.2,1.3244]
[1735631281363,0.29848,3354.8,3354.6,0.29849]
[1735631281767,3.80356704,3354.8,3354.6,0.29849]
[1735631282466,3.80356704,3354.8,3354.5,0.2985]
[1735631282964,0.29848,3354.8,3354.5,0.2985]
[1735631283465,0.29848,3354.8,3354.6,0.29849]
[1735631283665,0.29848,3354.8,3354.4,0.29851]
[1735631283858,1.18269,3354.7,3354.4,0.29851]
[1735631284259,0.8842,3354.7,3354.5,0.2985]
[1735631284766,0.8842,3354.7,3354.6,0.2985]
[1735631285157,3.50508704,3354.9,3354.2,1.3244]
[1735631285365,3.50508704,3354.9,3354.8,0.29848]
[1735631285966,3.50508704,3354.9,3354.7,0.29848]
[1735631286166,3.50508704,3354.9,3354.2,1.3244]
[1735631286469,3.50508704,3354.9,3354.8,0.29848]
[1735631286665,3.50508704,3355.0,3354.8,0.29848]
[1735631287072,3.80354704,3355.0,3354.2,1.3244]
[1735631287263,3.50508704,3355.0,3354.8,0.29847]
[1735631287465,3.80354704,3355.0,3354.8,0.29847]
[1735631289167,3.80354704,3355.0,3354.9,0.29847]
[1735631289168,3.50508704,3355.0,3354.9,0.29847]
[1735631289672,3.50508704,3355.0,3354.9,41.09847]
[1735631289968,4.38928704,3355.1,3354.9,41.09847]
[1735631290172,4.38928704,3355.1,3354.9,0.29847]
[1735631290373,4.68774704,3355.1,3354.9,0.29847]
[1735631290775,4.68774704,3355.1,3354.6,40.8]
[1735631291068,4.68774704,3355.1,3354.9,0.29847]
[1735631291273,4.38928704,3355.1,3354.9,0.29847]
[1735631291974,3.50508704,3355.0,3354.9,0.29847]
[1735631293167,0.8842,3355.1,3354.9,0.29847]
[1735631293675,0.8842,3355.1,3355.0,0.29846]
[1735631296376,0.436,3355.1,3355.0,0.29846]
[1735631296867,3.50508704,3355.2,3355.0,0.29846]
[1735631297069,3.50508704,3355.2,3355.1,0.29845]
[1735631297575,3.50508704,3355.2,3355.1,41.09845]
[1735631298276,3.2078,3355.4,3355.1,40.8]
[1735631298477,3.2078,3355.4,3355.3,0.29843]
[1735631298973,3.2078,3355.4,3355.2,0.4487]
[1735631299273,3.2078,3355.4,3355.2,0.74713]
[1735631299777,3.2078,3355.4,3355.3,0.29843]
[1735631300077,4.0923,3355.4,3355.3,0.29843]
[1735631301473,4.0923,3355.4,3355.2,0.4487]
[1735631301672,4.0923,3355.4,3355.2,0.74714]
[1735631301875,4.0923,3355.4,3355.3,0.29843]
[1735631302877,4.0923,3355.4,3355.2,0.74714]
[1735631303573,4.0923,3355.4,3355.2,0.4487]
[1735631303778,4.0923,3355.4,3354.9,3.50627]
[1735631303979,0.29846,3355.1,3354.9,3.2078]
[1735631304280,0.29846,3355.1,3354.9,44.0078]
[1735631304475,0.4152,3355.0,3354.9,44.0078]
[1735631305478,0.4152,3355.0,3354.9,44.30627]
[1735631305889,0.4152,3355.0,3354.9,41.09847]
[1735631313772,3.50508704,3355.1,3355.0,0.29846]
[1735631316184,3.50508704,3355.1,3355.0,1.19196]
[1735631318786,4.67344939,3355.2,3355.1,0.29845]
[1735631322385,4.67344939,3355.3,3355.2,0.29844]
[1735631324789,4.67344939,3355.3,3354.8,4.66072645]
[1735631324992,0.75195,3355.2,3354.9,0.29846]
[1735631325492,0.29845,3355.1,3354.9,0.29846]
[1735631325794,4.67344939,3355.0,3354.9,0.29847]
[1735631329093,4.67344939,3355.0,3354.6,48.66852645]
[1735631329297,3.10064355,3354.9,3354.6,48.66852645]
[1735631329603,0.29849,3354.7,3354.6,45.46072645]
[1735631329990,0.29849,3354.7,3354.6,4.66072645]
[1735631330193,0.29848,3354.8,3354.6,4.95921645]
[1735631330393,3.39911355,3354.9,3354.7,0.29848]
[1735631330694,3.39911355,3354.9,3354.6,45.46072645]
[1735631330695,0.29849,3354.7,3354.6,4.66072645]
[1735631330895,6.15373337,3354.7,3354.4,0.29851]
[1735631331088,0.4514,3354.6,3354.5,40.8]
[1735631332095,0.4514,3354.6,3354.5,41.0985]
[1735631332991,0.4514,3354.6,3354.5,40.8]
[1735631333792,5.85524337,3354.7,3354.6,0.2985]
[1735631333992,5.85524337,3354.7,3354.6,0.7447]
[1735631334198,5.85524337,3354.7,3354.6,1.165]
[1735631334393,5.85524337,3354.7,3354.6,1.5991]
[1735631334699,4.67534265,3354.7,3354.6,1.5991]
[1735631335902,3.5065968,3354.7,3354.6,1.5991]
[1735631336097,3.5065968,3354.7,3354.6,4.8069]
[1735631337396,3.5065968,3354.8,3354.7,0.29849]
[1735631338299,3.5065968,3355.0,3354.7,4.66072645]
[1735631338593,3.5065968,3355.0,3354.9,0.29847]
[1735631339600,5.85524337,3355.4,3354.7,4.66072645]
[1735631339601,3.5065968,3355.1,3354.7,4.66072645]
[1735631339807,3.5065968,3355.1,3355.0,0.29846]
[1735631342297,5.88218265,3355.3,3355.1,0.29845]
[1735631342298,4.67534265,3355.2,3355.1,0.29845]
[1735631343206,0.9084,3355.3,3354.7,5.40694645]
[1735631343207,5.58374265,3355.3,3354.7,5.40694645]
[1735631343494,4.67534265,3355.3,3355.2,0.29844]
[1735631347096,4.67534265,3355.4,3355.3,0.29843]
[1735631347905,5.85524337,3355.5,3355.4,0.29842]
[1735631350106,5.85524337,3355.5,3355.1,1.293]
[1735631350501,8.11268692,3355.5,3355.3,0.29843]
[1735631351305,8.11268692,3355.5,3355.4,0.29842]
[1735631352308,5.85524337,3355.5,3355.4,0.29842]
[1735631354105,6.27364337,3355.6,3355.4,0.29842]
[1735631354708,6.57205337,3355.6,3355.4,0.29842]
[1735631355407,5.85524337,3355.5,3355.4,0.29842]
[1735631356907,6.27364337,3355.6,3355.4,0.29842]
[1735631357797,6.27364337,3355.6,3355.5,0.29842]
[1735631360207,6.27364337,3355.6,3355.4,0.29842]
[1735631360708,6.57205337,3355.6,3355.4,0.29842]
[1735631361015,0.4184,3355.6,3355.4,0.29842]
[1735631361502,0.4184,3355.6,3355.1,0.8721]
[1735631361707,0.4184,3355.6,3355.5,0.29842]
[1735631367407,2.67584355,3355.6,3355.1,0.8721]
[1735631367613,2.97425355,3355.6,3355.4,0.29842]
[1735631368413,8.82949692,3355.6,3355.4,0.29842]
[1735631370617,8.53108692,3355.6,3355.1,0.8721]
[1735631370819,0.29842,3355.5,3355.2,0.29844]
[1735631371024,0.29842,3355.5,3355.3,0.29843]
[1735631371716,0.29844,3355.3,3355.1,0.75045]
[1735631372915,4.67335946,3355.2,3355.1,0.75045]
[1735631375722,3.50581143,3355.2,3355.1,0.75045]
[1735631376821,4.67335946,3355.3,3355.2,0.29844]